[Event "3rd Memorial Warakomska 2019"]
[Site "Suwalki"]
[Date "2019.08.06"]
[Round "2.17"]
[White "Sowul, Bartosz"]
[Black "Goluch, Piotr"]
[Result "0-1"]
[ECO "A05"]
[WhiteElo "2210"]
[BlackElo "2386"]
[Annotator "NA"]
[PlyCount "98"]
[EventDate "2019.08.05"]
[EventType "swiss"]
[EventCountry "POL"]
[SourceTitle "playchess.com"]
[Source "ChessBase"]
[SourceQuality "1"]
[TimeControl "40/5400+30:1800+30"]

1. Nf3 {[%emt 0:00:00]} Nf6 {[%emt 0:01:46]} 2. c4 {[%emt 0:00:00]} c5 {[%emt 0:00:52]} 3. b3 {[%emt 0:00:01]} e6 {[%emt 0:02:54]} 4. g3 {[%emt 0:02:27]} d5 {[%emt 0:00:21]} 5. Bg2 {[%emt 0:00:46]} Be7 {[%emt 0:00:25]} 6. O-O {[%emt 0:00:08]} O-O {[%emt 0:00:04]} 7. Bb2 {[%emt 0:00:39]} Nc6 {[%emt 0:00:04]} 8. e3 {[%emt 0:00:20]} d4 {[%emt 0:00:25]} 9. exd4 {[%emt 0:00:24]} cxd4 {[%emt 0:00:04]} 10. Re1 {[%emt 0:00:15]} Re8 {[%emt 0:00:03]} 11. d3 {[%emt 0:01:41]} Bf8 {[%emt 0:04:27]} 12. Ne5 {[%emt 0:04:31]} Nxe5 {[%emt 0:01:15]} 13. Rxe5 {[%emt 0:00:06]} Nd7 {[%emt 0:03:19]} 14. Re2 {[%emt 0:00:07]} e5 {[%emt 0:09:49]} 15. Qe1 {[%emt 0:09:13]} Qb6 {[%emt 0:00:38]} 16. Ba3 {[%emt 0:21:09]} Qg6 {[%emt 0:10:39]} 17. f4 {[%emt 0:08:31]} Bxa3 {[%emt 0:04:36]} 18. Nxa3 {[%emt 0:00:09]} Nc5 {[%emt 0:00:03]} 19. Rxe5 {[%emt 0:16:19]} Bd7 {[%emt 0:00:03]} 20. Nb5 {[%emt 0:20:32]} Nxd3 {[%emt 0:03:33]} 21. Rxe8+ {[%emt 0:00:07]} Rxe8 {[%emt 0:00:04]} 22. Qf1 {[%emt 0:00:11]} Bg4 {[%emt 0:08:45]} 23. Nxd4 {[%emt 0:06:18]} Rd8 {[%emt 0:00:55]} 24. Bd5 {[%emt 0:02:07]} Nb4 {[%emt 0:03:36]} 25. Qf2 {[%emt 0:05:53]} Nxd5 {[%emt 0:00:33]} 26. cxd5 {[%emt 0:00:04]} Rxd5 {[%emt 0:03:38]} 27. Re1 {[%emt 0:00:06]} h6 {[%emt 0:02:54]} 28. Nc2 {[%emt 0:01:15]} Qd6 {[%emt 0:05:17]} 29. Ne3 {[%emt 0:00:37]} Rd2 {[%emt 0:00:06]} 30. Nc4 {[%emt 0:00:27]} Rxf2 {[%emt 0:00:05]} 31. Nxd6 {[%emt 0:00:12]} Rxa2 {[%emt 0:00:05]} 32. Re8+ {[%emt 0:00:46]} Kh7 {[%emt 0:00:04]} 33. Nxf7 {[%emt 0:00:36]} Bh3 {[%emt 0:00:52]} 34. f5 {[%emt 0:00:32]} Bxf5 {[%emt 0:02:14]} 35. h4 {[%emt 0:00:21]} Kg6 {[%emt 0:03:27]} 36. Nd6 {[%emt 0:00:31]} Bd7 {[%emt 0:03:37]} 37. Re7 {[%emt 0:00:34]} Bc6 {[%emt 0:00:39]} 38. h5+ {[%emt 0:00:32]} Kf6 {[%emt 0:00:58]} 39. Re3 {[%emt 0:00:27]} Kg5 {[%emt 0:00:38]} 40. Re7 {[%emt 0:00:00]} Kf6 {[%emt 0:00:00]} 41. Re3 {[%emt 0:02:15]} Ra5 {[%emt 0:05:01]} 42. g4 {[%emt 0:03:10]} Re5 {[%emt 0:01:35]} 43. Rg3 {[%emt 0:02:06]} Re2 {[%emt 0:00:30]} 44. Kf1 {[%emt 0:01:48]} Rd2 {[%emt 0:01:47]} 45. Nc4 {[%emt 0:01:22]} Rd4 {[%emt 0:01:08]} 46. Kf2 {[%emt 0:01:15]} Kg5 {[%emt 0:01:21]} 47. Ne5 {[%emt 0:01:17]} Rf4+ {[%emt 0:00:50]} 48. Kg1 {[%emt 0:00:13]} Bd5 {[%emt 0:02:21]} 49. Rc3 {[%emt 0:01:13]} Re4 {[%emt 0:03:35]} 0-1

[Event "3rd Memorial Warakomska 2019"]
[Site "Suwalki"]
[Date "2019.08.06"]
[Round "2.18"]
[White "Grib, Roman"]
[Black "Szpar, Milosz"]
[Result "1-0"]
[ECO "B31"]
[WhiteElo "2421"]
[BlackElo "2289"]
[Annotator "NA"]
[PlyCount "107"]
[EventDate "2019.08.05"]
[EventType "swiss"]
[EventCountry "POL"]
[SourceTitle "playchess.com"]
[Source "ChessBase"]
[SourceQuality "1"]
[TimeControl "40/5400+30:1800+30"]

1. e4 {[%emt 0:00:00]} c5 {[%emt 0:00:00]} 2. Nf3 {[%emt 0:00:00]} Nc6 {[%emt 0:00:02]} 3. Bb5 {[%emt 0:00:04]} g6 {[%emt 0:00:25]} 4. Bxc6 {[%emt 0:00:24]} dxc6 {[%emt 0:00:16]} 5. d3 {[%emt 0:00:08]} Bg7 {[%emt 0:00:16]} 6. h3 {[%emt 0:00:10]} Nf6 {[%emt 0:00:43]} 7. Nc3 {[%emt 0:02:03]} Nd7 {[%emt 0:00:57]} 8. Be3 {[%emt 0:00:41]} e5 {[%emt 0:00:38]} 9. Qd2 {[%emt 0:00:21]} h6 {[%emt 0:00:39]} 10. O-O {[%emt 0:04:25]} b6 {[%emt 0:01:08]} 11. Nh2 {[%emt 0:00:26]} Nf8 {[%emt 0:01:11]} 12. f4 {[%emt 0:00:37]} exf4 {[%emt 0:00:27]} 13. Bxf4 {[%emt 0:06:48]} Ne6 {[%emt 0:01:17]} 14. Bg3 {[%emt 0:01:41]} Nd4 {[%emt 0:05:01]} 15. Rae1 {[%emt 0:13:24]} O-O {[%emt 0:02:51]} 16. e5 {[%emt 0:11:54]} Bf5 {[%emt 0:06:54]} 17. Ne4 {[%emt 0:07:33]} Bxe4 {[%emt 0:02:24]} 18. Rxe4 {[%emt 0:00:06]} Nf5 {[%emt 0:11:37]} 19. Bf4 {[%emt 0:04:59]} Kh7 {[%emt 0:03:12]} 20. Ng4 {[%emt 0:06:24]} Re8 {[%emt 0:05:55]} 21. a4 {[%emt 0:17:10]} Re6 {[%emt 0:02:53]} 22. a5 {[%emt 0:01:32]} Qe7 {[%emt 0:09:30]} 23. Ra1 {[%emt 0:04:43]} b5 {[%emt 0:01:35]} 24. Rae1 {[%emt 0:03:57]} a6 {[%emt 0:07:06]} 25. Qc3 {[%emt 0:05:30]} Rd8 {[%emt 0:07:08]} 26. Be3 {[%emt 0:03:42]} Nxe3 {[%emt 0:13:40]} 27. R1xe3 {[%emt 0:00:05]} Rd5 {[%emt 0:02:36]} 28. Nf6+ {[%emt 0:02:12]} Kh8 {[%emt 0:00:08]} 29. b4 {[%emt 0:01:52]} Bxf6 {[%emt 0:05:26]} 30. exf6 {[%emt 0:00:31]} Qxf6 {[%emt 0:00:20]} 31. Qxf6+ {[%emt 0:01:30]} Rxf6 {[%emt 0:00:04]} 32. Re8+ {[%emt 0:00:23]} Kg7 {[%emt 0:00:45]} 33. Ra8 {[%emt 0:00:38]} cxb4 {[%emt 0:01:02]} 34. Rxa6 {[%emt 0:00:20]} Rc5 {[%emt 0:02:40]} 35. Re2 {[%emt 0:00:04]} Re6 {[%emt 0:01:16]} 36. Rf2 {[%emt 0:00:05]} Re7 {[%emt 0:02:09]} 37. Rb6 {[%emt 0:00:28]} Rc3 {[%emt 0:02:34]} 38. a6 {[%emt 0:00:43]} b3 {[%emt 0:01:39]} 39. cxb3 {[%emt 0:00:13]} Rxd3 {[%emt 0:00:11]} 40. Ra2 {[%emt 0:00:00]} Ra7 {[%emt 0:00:00]} 41. Rb7 {[%emt 0:01:11]} Ra8 {[%emt 0:02:45]} 42. a7 {[%emt 0:01:56]} Rdd8 {[%emt 0:02:43]} 43. Rf2 {[%emt 0:01:44]} Rf8 {[%emt 0:00:42]} 44. b4 {[%emt 0:00:06]} g5 {[%emt 0:04:24]} 45. Rd2 {[%emt 0:01:52]} Rac8 {[%emt 0:03:52]} 46. Rd6 {[%emt 0:01:28]} h5 {[%emt 0:02:11]} 47. Kf2 {[%emt 0:00:05]} Rfe8 {[%emt 0:03:29]} 48. Kf3 {[%emt 0:02:21]} Kg8 {[%emt 0:04:10]} 49. Rdd7 {[%emt 0:00:58]} Kg7 {[%emt 0:01:13]} 50. Rxf7+ {[%emt 0:00:14]} Kg6 {[%emt 0:00:11]} 51. Rfc7 {[%emt 0:04:45]} Rxc7 {[%emt 0:01:25]} 52. Rxc7 {[%emt 0:00:04]} Kf5 {[%emt 0:01:22]} 53. g4+ {[%emt 0:00:44]} hxg4+ {[%emt 0:00:05]} 54. hxg4+ {[%emt 0:00:02]} 1-0

[Event "3rd Memorial Warakomska 2019"]
[Site "Suwalki"]
[Date "2019.08.06"]
[Round "2.19"]
[White "Wolanski, Michal"]
[Black "Hnydiuk, Aleksander"]
[Result "0-1"]
[ECO "A10"]
[WhiteElo "2007"]
[BlackElo "2412"]
[Annotator "NA"]
[PlyCount "120"]
[EventDate "2019.08.05"]
[EventType "swiss"]
[EventCountry "POL"]
[SourceTitle "playchess.com"]
[Source "ChessBase"]
[SourceQuality "1"]
[TimeControl "40/5400+30:1800+30"]

1. c4 {[%emt 0:00:00]} b6 {[%emt 0:05:43]} 2. Nc3 {[%emt 0:00:00]} Bb7 {[%emt 0:00:03]} 3. Nf3 {[%emt 0:00:37]} e6 {[%emt 0:00:15]} 4. e4 {[%emt 0:01:01]} Bb4 {[%emt 0:00:24]} 5. Bd3 {[%emt 0:01:14]} Ne7 {[%emt 0:00:51]} 6. O-O {[%emt 0:00:34]} O-O {[%emt 0:00:16]} 7. a3 {[%emt 0:08:33]} Bxc3 {[%emt 0:00:16]} 8. dxc3 {[%emt 0:00:11]} f5 {[%emt 0:02:09]} 9. Qe2 {[%emt 0:07:51]} Qe8 {[%emt 0:09:18]} 10. Nd4 {[%emt 0:14:12]} Qg6 {[%emt 0:04:03]} 11. f3 {[%emt 0:02:01]} fxe4 {[%emt 0:02:26]} 12. Bxe4 {[%emt 0:00:27]} Bxe4 {[%emt 0:00:06]} 13. Qxe4 {[%emt 0:00:54]} Qxe4 {[%emt 0:00:20]} 14. fxe4 {[%emt 0:00:09]} Rxf1+ {[%emt 0:09:31]} 15. Kxf1 {[%emt 0:00:08]} e5 {[%emt 0:28:01]} 16. Nb5 {[%emt 0:18:38]} Na6 {[%emt 0:01:37]} 17. Be3 {[%emt 0:02:30]} Kf7 {[%emt 0:09:43]} 18. a4 {[%emt 0:03:20]} c6 {[%emt 0:08:45]} 19. Nd6+ {[%emt 0:05:56]} Ke6 {[%emt 0:00:04]} 20. Rd1 {[%emt 0:00:08]} Rf8+ {[%emt 0:00:35]} 21. Ke2 {[%emt 0:00:32]} Nc8 {[%emt 0:00:41]} 22. Nxc8 {[%emt 0:02:06]} Rxc8 {[%emt 0:00:03]} 23. b4 {[%emt 0:01:30]} c5 {[%emt 0:08:50]} 24. b5 {[%emt 0:01:30]} Nb8 {[%emt 0:03:31]} 25. Rf1 {[%emt 0:07:16]} d6 {[%emt 0:00:48]} 26. Rf3 {[%emt 0:00:56]} Nd7 {[%emt 0:00:15]} 27. Bg5 {[%emt 0:05:29]} a6 {[%emt 0:00:49]} 28. Rf1 {[%emt 0:00:39]} axb5 {[%emt 0:00:23]} 29. cxb5 {[%emt 0:02:35]} Ra8 {[%emt 0:01:14]} 30. Ra1 {[%emt 0:00:12]} h6 {[%emt 0:02:46]} 31. Bd2 {[%emt 0:01:11]} d5 {[%emt 0:00:50]} 32. c4 {[%emt 0:03:01]} dxc4 {[%emt 0:00:25]} 33. a5 {[%emt 0:00:15]} bxa5 {[%emt 0:00:41]} 34. Rxa5 {[%emt 0:00:11]} Rxa5 {[%emt 0:00:29]} 35. Bxa5 {[%emt 0:00:06]} Nf6 {[%emt 0:00:43]} 36. b6 {[%emt 0:03:22]} Kd6 {[%emt 0:00:12]} 37. b7 {[%emt 0:02:33]} Nd7 {[%emt 0:00:01]} 38. Kd2 {[%emt 0:01:36]} Kc6 {[%emt 0:00:05]} 39. Kc3 {[%emt 0:00:27]} Kxb7 {[%emt 0:00:03]} 40. Kxc4 {[%emt 0:00:00]} Kc6 {[%emt 0:00:00]} 41. Bc3 {[%emt 0:07:20]} Nb6+ {[%emt 0:00:07]} 42. Kb3 {[%emt 0:00:24]} Kd6 {[%emt 0:02:40]} 43. Ba5 {[%emt 0:00:36]} Nd7 {[%emt 0:00:59]} 44. Kc4 {[%emt 0:02:13]} Nf6 {[%emt 0:04:29]} 45. Kd3 {[%emt 0:00:40]} Nh5 {[%emt 0:05:58]} 46. Kc4 {[%emt 0:01:21]} Nf6 {[%emt 0:07:34]} 47. Kd3 {[%emt 0:00:11]} Ng4 {[%emt 0:00:05]} 48. h3 {[%emt 0:03:43]} Nf6 {[%emt 0:00:50]} 49. Be1 {[%emt 0:09:22]} Nh5 {[%emt 0:01:49]} 50. Bf2 {[%emt 0:06:32]} Nf4+ {[%emt 0:01:01]} 51. Kc4 {[%emt 0:00:06]} Nxg2 {[%emt 0:00:25]} 52. Bxc5+ {[%emt 0:00:03]} Ke6 {[%emt 0:00:04]} 53. Bf8 {[%emt 0:01:04]} Kf6 {[%emt 0:01:09]} 54. Bc5 {[%emt 0:00:56]} g5 {[%emt 0:02:25]} 55. Bf2 {[%emt 0:01:40]} h5 {[%emt 0:03:55]} 56. Kc3 {[%emt 0:01:59]} h4 {[%emt 0:00:28]} 57. Bb6 {[%emt 0:00:42]} Nf4 {[%emt 0:01:00]} 58. Bd8+ {[%emt 0:00:08]} Kg6 {[%emt 0:00:03]} 59. Bc7 {[%emt 0:00:11]} Nxh3 {[%emt 0:00:09]} 60. Bxe5 {[%emt 0:00:21]} Nf4 {[%emt 0:00:29]} 0-1

[Event "3rd Memorial Warakomska 2019"]
[Site "Suwalki"]
[Date "2019.08.06"]
[Round "2.20"]
[White "Antolak, Julia"]
[Black "Stupak, Kirill"]
[Result "1/2-1/2"]
[ECO "C04"]
[WhiteElo "2258"]
[BlackElo "2560"]
[Annotator "ChessBase"]
[PlyCount "228"]
[EventDate "2019.08.05"]
[EventType "swiss"]
[EventCountry "POL"]
[SourceTitle "playchess.com"]
[Source "ChessBase"]
[SourceQuality "1"]
[TimeControl "40/5400+30:1800+30"]

1. e4 {[%emt 0:00:00]} e6 {[%emt 0:01:35]} 2. d4 {[%emt 0:00:00]} d5 {[%emt 0:00:02]} 3. Nd2 {[%emt 0:00:00]} Nc6 {[%emt 0:00:05]} 4. Ngf3 {[%emt 0:00:00]} Nf6 {[%emt 0:00:04]} 5. e5 {[%emt 0:00:07]} Nd7 {[%emt 0:00:02]} 6. Bd3 {[%emt 0:00:16]} f6 {[%emt 0:01:34]} 7. Ng5 {[%emt 0:09:21]} Ndxe5 {[%emt 0:00:02]} 8. dxe5 {[%emt 0:00:31]} fxg5 {[%emt 0:00:02]} 9. Qh5+ {[%emt 0:00:57]} Kd7 {[%emt 0:01:07]} 10. Nf3 {[%emt 0:08:29]} Nb4 {[%emt 0:00:01]} 11. Bxg5 {[%emt 0:05:08]} Nxd3+ {[%emt 0:00:29]} 12. cxd3 {[%emt 0:00:06]} Qe8 {[%emt 0:00:24]} 13. Qg4 {[%emt 0:10:52]} Qg6 {[%emt 0:00:42]} 14. Qa4+ {[%emt 0:04:12]} c6 {[%emt 0:00:21]} 15. O-O {[%emt 0:00:17]} h6 {[%emt 0:12:09]} 16. Be3 {[%emt 0:03:35]} Ke8 {[%emt 0:00:40]} 17. Rfd1 {[%emt 0:04:15]} Be7 {[%emt 0:05:08]} 18. Rac1 {[%emt 0:11:33]} Bd7 {[%emt 0:04:01]} 19. Bc5 {[%emt 0:05:44]} Bxc5 {[%emt 0:05:22]} 20. Rxc5 {[%emt 0:00:06]} Rf8 {[%emt 0:00:20]} 21. Kh1 {[%emt 0:04:16]} Kf7 {[%emt 0:08:43]} 22. Ra5 {[%emt 0:04:25]} Kg8 {[%emt 0:01:15]} 23. Rxa7 {[%emt 0:03:57]} c5 {[%emt 0:00:09]} 24. Qa3 {[%emt 0:04:06]} Rxa7 {[%emt 0:00:40]} 25. Qxa7 {[%emt 0:00:05]} Bc6 {[%emt 0:00:03]} 26. d4 {[%emt 0:02:29]} Qc2 {[%emt 0:01:25]} 27. Rg1 {[%emt 0:02:06]} c4 {[%emt 0:09:03]} 28. Qa3 {[%emt 0:01:24]} Qxf2 {[%emt 0:00:11]} 29. Qe7 {[%emt 0:05:09]} Re8 {[%emt 0:04:51]} 30. Qb4 {[%emt 0:00:29]} Qe2 {[%emt 0:01:11]} 31. Re1 {[%emt 0:02:05]} Qf2 {[%emt 0:00:11]} 32. Rd1 {[%emt 0:02:04]} Rf8 {[%emt 0:01:54]} 33. Qd2 {[%emt 0:00:13]} Qxd2 {[%emt 0:02:59]} 34. Rxd2 {[%emt 0:00:02]} Ra8 {[%emt 0:01:57]} 35. a3 {[%emt 0:00:13]} c3 {[%emt 0:00:03]} 36. bxc3 {[%emt 0:02:40]} Rxa3 {[%emt 0:00:04]} 37. Rd3 {[%emt 0:00:30]} b5 {[%emt 0:07:52]} 38. Ne1 {[%emt 0:00:45]} Be8 {[%emt 0:00:01]} 39. Rg3 {[%emt 0:06:03]} h5 {[%emt 0:05:36]} 40. Kg1 {[%emt 0:00:00]} h4 {[%emt 0:00:00]} 41. Rh3 {[%emt 0:04:07]} g5 {[%emt 0:02:57]} 42. Kf2 {[%emt 0:02:28]} Ra2+ {[%emt 0:05:17]} 43. Kf1 {[%emt 0:03:10]} b4 {[%emt 0:01:47]} 44. cxb4 {[%emt 0:04:23]} Bb5+ {[%emt 0:00:02]} 45. Kg1 {[%emt 0:00:23]} Re2 {[%emt 0:00:25]} 46. Nd3 {[%emt 0:01:47]} g4 {[%emt 0:00:23]} 47. Rxh4 {[%emt 0:00:21]} Bxd3 {[%emt 0:00:02]} 48. Rxg4+ {[%emt 0:00:08]} Kh7 {[%emt 0:00:41]} 49. Rf4 {[%emt 0:01:14]} Rb2 {[%emt 0:01:53]} 50. Rf6 {[%emt 0:00:20]} Be4 {[%emt 0:03:24]} 51. Rxe6 {[%emt 0:01:13]} Rxg2+ {[%emt 0:02:16]} 52. Kf1 {[%emt 0:00:04]} Rxh2 {[%emt 0:00:03]} 53. b5 {[%emt 0:00:53]} Rd2 {[%emt 0:07:53]} 54. b6 {[%emt 0:05:29]} Rxd4 {[%emt 0:00:07]} 55. Re8 {[%emt 0:01:05]} Rb4 {[%emt 0:06:40]} 56. Rb8 {[%emt 0:00:33]} Bf5 {[%emt 0:01:59]} 57. b7 {[%emt 0:01:03]} Bd7 {[%emt 0:01:57]} 58. Kf2 {[%emt 0:07:19]} Bc6 {[%emt 0:00:58]} 59. e6 {[%emt 0:00:33]} Rxb7 {[%emt 0:00:32]} 60. Rc8 {[%emt 0:00:16]} Ba4 {[%emt 0:02:09]} 61. Rd8 {[%emt 0:00:13]} Kg6 {[%emt 0:05:48]} 62. Rxd5 {[%emt 0:00:12]} Kf6 {[%emt 0:00:01]} 63. Rh5 {[%emt 0:00:43]} Kxe6 {[%emt 0:01:07]} 64. Ke3 {[%emt 0:00:06]} Bc2 {[%emt 0:00:34]} 65. Rc5 {[%emt 0:00:14]} Bf5 {[%emt 0:00:23]} 66. Ra5 Rb3+ {[%emt 0:00:38]} 67. Kd4 {[%emt 0:00:20]} Rd3+ {[%emt 0:00:13]} 68. Kc4 {[%emt 0:00:14]} Rd1 {[%emt 0:00:17]} 69. Ra6+ {[%emt 0:00:07]} Ke5 {[%emt 0:00:06]} 70. Ra5+ {[%emt 0:00:48]} Ke4 {[%emt 0:00:04]} 71. Ra3 {[%emt 0:00:11]} Be6+ {[%emt 0:01:15]} 72. Kc5 {[%emt 0:00:12]} Rd8 {[%emt 0:01:12]} 73. Ra1 {[%emt 0:01:15]} Bf5 {[%emt 0:00:40]} 74. Re1+ {[%emt 0:00:16]} Kf4 {[%emt 0:00:02]} 75. Re7 {[%emt 0:00:28]} Be4 {[%emt 0:00:53]} 76. Rf7+ {[%emt 0:00:21]} Ke3 {[%emt 0:00:01]} 77. Ra7 {[%emt 0:00:14]} Rc8+ {[%emt 0:06:29]} 78. Kd6 {[%emt 0:00:17]} Rc6+ {[%emt 0:00:28]} 79. Ke5 {[%emt 0:00:42]} Rc5+ {[%emt 0:00:19]} 80. Kd6 {[%emt 0:00:20]} Rg5 {[%emt 0:00:29]} 81. Rc7 {[%emt 0:01:13]} Kd4 {[%emt 0:00:29]} 82. Rc1 {[%emt 0:00:29]} Rg6+ {[%emt 0:00:25]} 83. Kc7 {[%emt 0:00:06]} Bd5 {[%emt 0:01:20]} 84. Kd7 {[%emt 0:01:12]} Ke5 {[%emt 0:02:16]} 85. Re1+ {[%emt 0:00:25]} Be4 {[%emt 0:00:01]} 86. Kc7 {[%emt 0:00:30]} Rc6+ {[%emt 0:00:05]} 87. Kd7 {[%emt 0:00:12]} Rb6 {[%emt 0:00:05]} 88. Rc1 {[%emt 0:00:23]} Rb7+ {[%emt 0:01:06]} 89. Rc7 {[%emt 0:00:18]} Rb8 {[%emt 0:00:01]} 90. Ra7 {[%emt 0:02:02]} Bd5 {[%emt 0:01:18]} 91. Kc7 {[%emt 0:00:35]} Rh8 {[%emt 0:02:39]} 92. Ra6 {[%emt 0:01:50]} Rh7+ {[%emt 0:01:24]} 93. Kb6 {[%emt 0:00:06]} Kd4 {[%emt 0:01:00]} 94. Ra4+ {[%emt 0:01:10]} Bc4 {[%emt 0:00:15]} 95. Kc6 {[%emt 0:00:37]} Rh6+ {[%emt 0:02:33]} 96. Kd7 {[%emt 0:00:16]} Rh4 {[%emt 0:01:55]} 97. Kd6 {[%emt 0:00:54]} Re4 {[%emt 0:00:02]} 98. Ra1 {[%emt 0:00:22]} Bb3 {[%emt 0:00:33]} 99. Rh1 {[%emt 0:01:10]} Rf4 {[%emt 0:01:46]} 100. Rh6 {[%emt 0:00:34]} Bd5 {[%emt 0:00:02]} 101. Rg6 {[%emt 0:00:45]} Rh4 {[%emt 0:00:18]} 102. Rf6 {[%emt 0:00:15]} Rh8 {[%emt 0:00:37]} 103. Rg6 {[%emt 0:00:33]} Be4 {[%emt 0:00:13]} 104. Rg5 {[%emt 0:00:22]} Rh6+ {[%emt 0:00:17]} 105. Ke7 {[%emt 0:00:21]} Bd5 {[%emt 0:00:40]} 106. Rg4+ {[%emt 0:00:13]} Ke5 {[%emt 0:00:23]} 107. Rg5+ {[%emt 0:00:14]} Ke4 {[%emt 0:00:01]} 108. Rg4+ {[%emt 0:00:14]} Kf5 {[%emt 0:00:03]} 109. Rg1 {[%emt 0:00:15]} Ke5 {[%emt 0:00:08]} 110. Rg5+ {[%emt 0:00:06]} Ke4 {[%emt 0:00:04]} 111. Rg4+ {[%emt 0:00:05]} Kf5 {[%emt 0:00:13]} 112. Rg1 {[%emt 0:00:05]} Rb6 {[%emt 0:00:05]} 113. Rf1+ {[%emt 0:00:09]} Ke5 {[%emt 0:00:02]} 114. Re1+ {[%emt 0:00:09]} Be4 {[%emt 0:00:01]} 1/2-1/2

[Event "3rd Memorial Warakomska 2019"]
[Site "Suwalki"]
[Date "2019.08.06"]
[Round "2.21"]
[White "Czarnota, Pawel"]
[Black "Mulet, Piotr"]
[Result "1-0"]
[ECO "C05"]
[WhiteElo "2534"]
[BlackElo "2244"]
[Annotator "ChessBase"]
[PlyCount "143"]
[EventDate "2019.08.05"]
[EventType "swiss"]
[EventCountry "POL"]
[SourceTitle "playchess.com"]
[Source "ChessBase"]
[SourceQuality "1"]
[TimeControl "40/5400+30:1800+30"]

1. e4 {[%emt 0:00:00]} e6 {[%emt 0:00:00]} 2. d4 {[%emt 0:00:00]} d5 {[%emt 0:00:00]} 3. Nd2 {[%emt 0:00:04]} Nf6 {[%emt 0:00:00]} 4. e5 {[%emt 0:00:18]} Nfd7 {[%emt 0:00:02]} 5. Bd3 {[%emt 0:00:12]} c5 {[%emt 0:00:11]} 6. c3 {[%emt 0:00:06]} Nc6 {[%emt 0:00:07]} 7. Ne2 {[%emt 0:00:06]} f6 {[%emt 0:00:23]} 8. exf6 {[%emt 0:00:26]} Qxf6 {[%emt 0:02:36]} 9. Nf3 {[%emt 0:00:27]} Bd6 {[%emt 0:00:40]} 10. O-O {[%emt 0:01:18]} O-O {[%emt 0:03:34]} 11. Bc2 {[%emt 0:10:59]} cxd4 {[%emt 0:08:28]} 12. cxd4 {[%emt 0:01:54]} Nb6 {[%emt 0:00:30]} 13. Bg5 {[%emt 0:04:09]} Qf7 {[%emt 0:01:51]} 14. Bh4 {[%emt 0:00:07]} g6 {[%emt 0:01:17]} 15. Bg3 {[%emt 0:00:41]} Bxg3 {[%emt 0:03:14]} 16. hxg3 {[%emt 0:09:05]} Bd7 {[%emt 0:02:14]} 17. Rc1 {[%emt 0:05:27]} Rac8 {[%emt 0:05:37]} 18. Bb1 {[%emt 0:03:12]} Qf6 {[%emt 0:08:56]} 19. b3 {[%emt 0:00:50]} Rf7 {[%emt 0:06:56]} 20. Qd2 {[%emt 0:06:33]} Re7 {[%emt 0:01:56]} 21. Nf4 {[%emt 0:03:48]} Rf8 {[%emt 0:00:53]} 22. Rfe1 {[%emt 0:01:55]} Be8 {[%emt 0:08:38]} 23. Qe3 {[%emt 0:06:12]} Nc8 {[%emt 0:01:18]} 24. Nd3 {[%emt 0:00:08]} Nd6 {[%emt 0:05:43]} 25. Nde5 {[%emt 0:01:24]} Nf5 {[%emt 0:03:42]} 26. Bxf5 {[%emt 0:01:06]} Qxf5 {[%emt 0:00:32]} 27. Nxc6 {[%emt 0:00:14]} Bxc6 {[%emt 0:06:42]} 28. Ne5 {[%emt 0:01:44]} Be8 {[%emt 0:01:04]} 29. f3 g5 30. g4 {[%emt 0:04:36]} Qf4 {[%emt 0:00:59]} 31. Kf2 {[%emt 0:00:12]} h5 {[%emt 0:01:22]} 32. Qxf4 {[%emt 0:08:58]} Rxf4 {[%emt 0:00:26]} 33. Ke3 {[%emt 0:00:17]} hxg4 {[%emt 0:02:42]} 34. Nxg4 {[%emt 0:00:06]} Kg7 {[%emt 0:04:46]} 35. Rh1 {[%emt 0:01:04]} a5 {[%emt 0:04:24]} 36. Rc8 {[%emt 0:01:16]} Rf8 {[%emt 0:00:51]} 37. Ne5 {[%emt 0:00:11]} b5 {[%emt 0:05:00]} 38. Rhc1 {[%emt 0:00:48]} Rh8 {[%emt 0:00:42]} 39. Ra8 {[%emt 0:02:33]} Rh2 {[%emt 0:02:20]} 40. Rcc8 {[%emt 0:00:00]} Bf7 {[%emt 0:00:00]} 41. Kf2 {[%emt 0:10:57]} a4 {[%emt 0:09:07]} 42. bxa4 {[%emt 0:03:45]} bxa4 {[%emt 0:00:05]} 43. Rxa4 {[%emt 0:00:15]} Rb7 {[%emt 0:00:04]} 44. Kg3 {[%emt 0:00:05]} Rh4 {[%emt 0:00:28]} 45. Rca8 {[%emt 0:02:17]} Bg6 {[%emt 0:06:22]} 46. R4a7 {[%emt 0:09:43]} Rxa7 {[%emt 0:00:01]} 47. Rxa7+ {[%emt 0:00:09]} Kf6 {[%emt 0:00:03]} 48. Ng4+ {[%emt 0:00:34]} Kf5 {[%emt 0:00:04]} 49. Ra8 {[%emt 0:00:22]} Bh7 {[%emt 0:00:19]} 50. Rf8+ {[%emt 0:00:25]} Kg6 {[%emt 0:00:16]} 51. Rf6+ {[%emt 0:00:10]} Kg7 {[%emt 0:00:03]} 52. Rxe6 {[%emt 0:00:05]} Bf5 {[%emt 0:01:01]} 53. Re5 {[%emt 0:00:22]} Kg6 {[%emt 0:00:21]} 54. Rxd5 {[%emt 0:01:22]} Bxg4 {[%emt 0:00:05]} 55. fxg4 {[%emt 0:00:06]} Rh1 {[%emt 0:00:07]} 56. a4 {[%emt 0:00:04]} Ra1 {[%emt 0:00:04]} 57. a5 {[%emt 0:00:02]} Ra3+ {[%emt 0:00:17]} 58. Kf2 {[%emt 0:00:04]} Kf6 {[%emt 0:00:29]} 59. Rf5+ {[%emt 0:00:06]} Kg6 {[%emt 0:01:45]} 60. Rb5 {[%emt 0:00:31]} Kf6 {[%emt 0:00:22]} 61. Ke2 {[%emt 0:01:36]} Kg6 {[%emt 0:01:33]} 62. Kd2 {[%emt 0:02:07]} Rg3 {[%emt 0:00:24]} 63. a6 {[%emt 0:00:21]} Rxg4 {[%emt 0:00:04]} 64. Ra5 {[%emt 0:01:07]} Rxd4+ {[%emt 0:00:07]} 65. Ke3 {[%emt 0:00:34]} Rd8 {[%emt 0:00:04]} 66. a7 {[%emt 0:00:04]} Ra8 {[%emt 0:00:06]} 67. Kd4 {[%emt 0:00:04]} Kh5 {[%emt 0:00:17]} 68. Kc5 {[%emt 0:00:13]} Kh4 {[%emt 0:00:10]} 69. Kb6 {[%emt 0:00:16]} g4 {[%emt 0:00:07]} 70. Ra3 {[%emt 0:00:28]} Rg8 {[%emt 0:02:04]} 71. a8=Q {[%emt 0:00:10]} Rxa8 {[%emt 0:00:02]} 72. Rxa8 {[%emt 0:00:07]} 1-0